{"text_format":"1","workbook":"xlsx","n_sheets":2,"sheets":["匯票 ","CCY"],"not_rendered":{"charts":0,"images":0,"macros":1,"external_links":0,"defined_names":1,"comments":0,"pivot_tables":0},"unopened":[],"bounds":{"document_bytes":16777216,"sheet_cells":100000,"rows_first":2000,"rows_last":500,"rows_between":2000,"halvings":0,"cell_chars":16384,"cell_head_chars":4096},"cells_cut":0,"cells_raw":0,"read":"whole","date_system":"1900"}

{"sheet":"匯票 ","index":0,"n_rows":90,"n_cols":22,"rows_kept":90,"cut":false,"hidden":false,"merged":[[2,21,3,23],[52,21,54,23],[68,13,69,22],[17,13,18,23],[52,10,53,11],[52,12,53,13],[52,19,54,20],[17,11,18,12],[20,11,21,13],[23,11,28,16],[43,10,43,24],[54,11,55,13],[20,24,21,24],[60,10,61,24],[57,10,58,10],[57,11,58,13],[14,0,15,1],[14,2,15,8],[12,12,15,20],[18,0,22,1],[20,18,21,19],[20,20,21,22],[18,2,22,8],[16,2,17,8],[8,2,9,5],[6,14,7,24],[9,10,10,24],[89,18,89,24],[63,12,66,20],[74,10,75,10],[71,24,72,24],[71,20,72,22],[71,14,72,17],[71,10,72,13],[63,10,64,11],[65,21,66,24],[68,11,69,12],[77,18,77,24],[74,11,79,16],[71,18,72,19],[2,2,3,3],[2,5,3,6],[3,11,4,13],[6,10,7,10],[6,11,7,13],[0,10,0,24],[49,10,51,24],[1,12,2,13],[0,0,1,9],[2,7,3,7],[2,0,3,0],[2,1,3,1],[2,8,3,8],[16,0,17,1],[12,2,13,8],[2,9,3,9],[6,3,7,3],[2,19,3,20],[10,2,11,3],[3,10,4,10],[1,10,2,11],[57,14,58,24],[54,10,55,10],[4,0,7,1],[38,18,38,24],[31,18,31,24],[6,4,7,5],[4,2,7,2],[6,8,7,8],[10,0,11,1],[8,0,9,1],[14,21,15,24],[6,6,7,7],[12,0,13,1],[23,10,24,10],[20,14,21,17],[12,10,13,11]]}
["請於下列黑框內鍵入資訊後,即可列印匯票",null,null,null,null,null,null,null,null,null,"BILL OF EXCHANGE"]
[null,null,null,null,null,null,null,null,null,null,"Draft No.",null,{"$f":"H3","v":0}]
["押匯幣別/金額 (CCY/AMT)","USD",null,null,null,"DRAFT NO.",null,null,"Date (YYMMDD)",null,null,null,null,null,null,null,null,null,null,"Date:",null,{"$f":"DATE(2000+VALUE(LEFT(J3,2)),VALUE(LEFT(RIGHT(J3,4),2)),VALUE(RIGHT(J3,2)))","v":{"$error":"#VALUE!"}}]
[null,null,null,null,null,null,null,null,null,null,"    For",{"$f":"B3&\" \"&TEXT(C3,\"#,##0.00\")","v":"USD 0.00"}]
["付款條件",null,"AT   "]
[]
[null,null,null,null,"DAYS            AFTER",null,null,null,null,null,"  At",{"$f":"IF(CCY!A23=1,\"SIGHT\",D7&\" days after \"&G7)","v":"SIGHT"},null,null," of this FIRST of Exchange (Second the same tenor and date being unpaid) "]
[]
["信用狀號碼 LC NO."]
[null,null,null,null,null,null,null,null,null,null,"     Pay to the order of  TAICHUNG COMMERCIAL BANK"]
["開狀日  (YYMMDD)"]
[]
["開狀銀行 (Issuing Bank)",null,null,null,null,null,null,null,null,null,"  the sum of ",null,{"$f":"VLOOKUP(B3,CCY!A2:B15,2,FALSE)&\" \"& ConvertCurrencyToEnglish(C3)","v":"U.S. DOLLARS  NO DOLLARS ONLY"}]
[]
["付款人(Drawee)",null,null,null,null,null,null,null,null,null," ",null,null,null,null,null,null,null,null,null,null,"value received"]
[]
["開狀人 (LC Applicant)"]
[null,null,null,null,null,null,null,null,null,null,null,"Drawn under",null,{"$f":"C13","v":0}]
["受款人/開票人              (Drawer)"]
[]
[null,null,null,null,null,null,null,null,null,null,null,"Irrevocable  L/C No.",null,null,{"$f":"C9","v":0},null,null,null,"dated",null,{"$f":"DATE(2000+VALUE(LEFT(C11,2)),VALUE(LEFT(RIGHT(C11,4),2)),VALUE(RIGHT(C11,2)))","v":{"$error":"#VALUE!"}}]
[]
[]
[null,null,null,null,null,null,null,null,null,null,"To",{"$f":"C15","v":0}]
[]
[null,null," "]
[]
[]
[]
[]
[]
[null,null,null,null,null,null,null,null,null,null,null,null,null,null,null,null,null,null,{"$f":"C19","v":0}]
[]
[]
[]
[null," "]
[" "]
[]
[null,null,null,null,null,null,null,null,null,null,null,null,null,null,null,null,null,null,"AUTHORIZED SIGNATURE"]
[]
[" "]
[]
[]
[null,null,null,null,null,null,null,null,null,null,"………………………………………………………………………………………………………………………………………………………………………………………………………."]
[]
[]
[]
[]
[]
[null,null,null,null,null,null,null,null,null,null,"BILL OF EXCHANGE"]
[]
[]
[null,null,null,null,null,null,null,null,null,null,"Draft No.",null,{"$f":"M2","v":0},null,null,null,null,null,null,"Date:",null,{"$f":"V3","v":{"$error":"#VALUE!"}}]
[]
[null,null,null,null,null,null,null,null,null,null,"    For",{"$f":"L4","v":"USD 0.00"}]
[]
[]
[null,null," ",null,null,null,null,null,null,null,"At",{"$f":"L7","v":"SIGHT"},null,null," of this SECOND of Exchange (First the same tenor and date being unpaid)"]
[]
[]
[null,null,null,null,null,null,null,null,null,null,"    Pay to the order of  TAICHUNG COMMERCIAL BANK"]
[]
[]
[null,null,null,null,null,null,null,null,null,null,"the sum of ",null,{"$f":"M13","v":"U.S. DOLLARS  NO DOLLARS ONLY"}]
[]
[null,null,null,null,null,null,null,null,null,null,null,null,null,null,null,null,null,null,null,null,null,"value received"]
[]
[]
[null,null,null,null,null,null,null,null,null,null,null,"Drawn under",null,{"$f":"N18","v":0}]
[]
[]
[null,null,null,null,null,null,null,null,null,null,"Irrevocable  L/C No.",null,null,null,{"$f":"C9","v":0},null,null,null,"dated",null,{"$f":"U21","v":{"$error":"#VALUE!"}}]
[]
[]
[null,null,null,null,null,null,null,null,null,null,"To",{"$f":"L24","v":0}]
[]
[]
[null,null,null,null,null,null,null,null,null,null,null,null,null,null,null,null,null,null,{"$f":"S32","v":0}]
[]
[]
[]
[]
[]
[]
[]
[]
[]
[]
[]
[null,null,null,null,null,null,null,null,null,null,null,null,null,null,null,null,null,null,"AUTHORIZED SIGNATURE"]

{"sheet":"CCY","index":1,"n_rows":23,"n_cols":7,"rows_kept":23,"cut":false,"hidden":false,"merged":[]}
["Currency","Words"]
["USD","U.S. DOLLARS ",null," "," "]
["CNY","CHINESE YUAN RENMINBI "]
["EUR","EURO "]
["HKD","HONG KONG DOLLARS ",null,null,null," "," "]
["GBP","POUNDS STERLING "]
["NZD","NEW ZEALAND DOLLARS "]
["AUD","AUSTRALIAN DOLLARS "]
["SGD","SINGAPORE DOLLARS "]
["CHF","SWISS FRANCS "]
["CAD","CANADIAN DOLLARS "]
["JPY","JAPANESE YEN "]
["SEK","SWEDISH KRONOR "]
["ZAR","SOUTH AFRICAN RAND "]
["TWD","TAIWAN DOLLARS "]
[]
[]
[]
["B/L DATE"]
["SIGHT"]
["INVOICE DATE"]
[]
[1]